[Event "Titled Tuesday Blitz August 10 2021"]
[White "Shyaamnikhil P"]
[Black "Jobava, Baadur"]
[WhiteFideId "5024218"]
[BlackFideId "13601520"]
[WhiteElo "2300"]
[BlackElo "2748"]
[Result "0-1"]
[Round "06"]
[TimeControl "180+1"]
[Date "2021.08.10"]
[WhiteClock "0:00:16"]
[BlackClock "0:01:03"]

1. e4 {[%clk 0:03:00]}  c6 {[%clk 0:03:00]} 2. d4 {[%clk 0:02:58]}  d5 {[%clk 0:03:01]} 3. exd5 {[%clk 0:02:56]}  cxd5 {[%clk 0:03:01]} 4. Nf3 {[%clk 0:02:57]}  Nc6 {[%clk 0:03:01]} 5. c4 {[%clk 0:02:52]}  e6 {[%clk 0:03:00]} 6. Nc3 {[%clk 0:02:51]}  Nf6 {[%clk 0:03:01]} 7. a3 {[%clk 0:02:48]}  Be7 {[%clk 0:03:01]} 8. Be2 {[%clk 0:02:41]}  dxc4 {[%clk 0:03:00]} 9. Bxc4 {[%clk 0:02:41]}  O-O {[%clk 0:03:00]} 10. O-O {[%clk 0:02:41]}  b6 {[%clk 0:03:00]} 11. Be3 {[%clk 0:02:37]}  Bb7 {[%clk 0:02:59]} 12. Qe2 {[%clk 0:02:37]}  Rc8 {[%clk 0:02:54]} 13. Rfd1 {[%clk 0:02:33]}  Na5 {[%clk 0:02:52]} 14. Ba2 {[%clk 0:02:27]}  Nd5 {[%clk 0:02:52]} 15. Bd2 {[%clk 0:02:22]}  h6 {[%clk 0:02:44]} 16. Ne5 {[%clk 0:02:21]}  Bf6 {[%clk 0:02:38]} 17. Ne4 {[%clk 0:02:17]}  Nc6 {[%clk 0:02:29]} 18. Bxd5 {[%clk 0:02:06]}  Nxd4 {[%clk 0:02:25]} 19. Qg4 {[%clk 0:01:49]}  Bxd5 {[%clk 0:02:17]} 20. Nxf6+ {[%clk 0:01:48]}  Qxf6 {[%clk 0:02:17]} 21. Qxd4 {[%clk 0:01:47]}  Rc4 {[%clk 0:02:17]} 22. Qxc4 {[%clk 0:01:40]}  Bxc4 {[%clk 0:02:18]} 23. Nxc4 {[%clk 0:01:41]}  Rc8 {[%clk 0:02:17]} 24. Bc3 {[%clk 0:01:40]}  Qe7 {[%clk 0:02:12]} 25. Nd6 {[%clk 0:01:37]}  Rd8 {[%clk 0:02:10]} 26. Ne4 {[%clk 0:01:35]}  e5 {[%clk 0:01:58]} 27. Rxd8+ {[%clk 0:01:28]}  Qxd8 {[%clk 0:01:59]} 28. Ng3 {[%clk 0:01:25]}  f6 {[%clk 0:01:57]} 29. h4 {[%clk 0:01:24]}  g6 {[%clk 0:01:50]} 30. h5 {[%clk 0:01:23]}  gxh5 {[%clk 0:01:50]} 31. Nxh5 {[%clk 0:01:22]}  Kf7 {[%clk 0:01:50]} 32. Ng3 {[%clk 0:01:20]}  Kg6 {[%clk 0:01:50]} 33. Re1 {[%clk 0:01:19]}  h5 {[%clk 0:01:50]} 34. Re2 {[%clk 0:01:06]}  Qd1+ {[%clk 0:01:47]} 35. Re1 {[%clk 0:01:06]}  Qd5 {[%clk 0:01:47]} 36. Nf1 {[%clk 0:00:57]}  h4 {[%clk 0:01:46]} 37. Ne3 {[%clk 0:00:57]}  Qe4 {[%clk 0:01:42]} 38. f3 {[%clk 0:00:56]}  Qd3 {[%clk 0:01:42]} 39. Kf2 {[%clk 0:00:56]}  Kg5 {[%clk 0:01:37]} 40. Rd1 {[%clk 0:00:53]}  Qb5 {[%clk 0:01:37]} 41. Rd5 {[%clk 0:00:51]}  Qc6 {[%clk 0:01:37]} 42. Rd8 {[%clk 0:00:41]}  Qe6 {[%clk 0:01:35]} 43. Rh8 {[%clk 0:00:25]}  a5 {[%clk 0:01:30]} 44. Ng4 {[%clk 0:00:20]}  Qb3 {[%clk 0:01:16]} 45. Rh6 {[%clk 0:00:19]}  f5 {[%clk 0:01:13]} 46. Bd2+ {[%clk 0:00:18]}  f4 {[%clk 0:01:13]} 47. Bc3 {[%clk 0:00:17]}  Qc2+ {[%clk 0:01:07]} 48. Kg1 {[%clk 0:00:16]}  h3 {[%clk 0:01:06]} 49. Nf2 {[%clk 0:00:16]}  Kxh6 {[%clk 0:01:03]} 0-1


[Site "https://www.chess.com"]

[Event "Titled Tuesday Blitz August 10 2021"]
[White "Timofeev, Artyom"]
[Black "Nguyen, Ngoc Truong Son"]
[WhiteFideId "4140419"]
[BlackFideId "12401110"]
[WhiteElo "2582"]
[BlackElo "2596"]
[Result "1-0"]
[Round "06"]
[TimeControl "180+1"]
[Date "2021.08.10"]
[WhiteClock "0:01:56"]
[BlackClock "0:00:26"]

1. c4 {[%clk 0:03:00]}  e6 {[%clk 0:02:57]} 2. Nf3 {[%clk 0:02:59]}  d5 {[%clk 0:02:55]} 3. e3 {[%clk 0:02:59]}  Nf6 {[%clk 0:02:54]} 4. b3 {[%clk 0:02:59]}  g6 {[%clk 0:02:51]} 5. Bb2 {[%clk 0:02:59]}  Bg7 {[%clk 0:02:51]} 6. Be2 {[%clk 0:02:58]}  O-O {[%clk 0:02:51]} 7. O-O {[%clk 0:02:58]}  Re8 {[%clk 0:02:39]} 8. d3 {[%clk 0:02:53]}  c5 {[%clk 0:02:32]} 9. cxd5 {[%clk 0:02:51]}  exd5 {[%clk 0:02:32]} 10. d4 {[%clk 0:02:51]}  Ne4 {[%clk 0:02:30]} 11. Nc3 {[%clk 0:02:50]}  Nxc3 {[%clk 0:02:28]} 12. Bxc3 {[%clk 0:02:50]}  Nc6 {[%clk 0:02:06]} 13. Rc1 {[%clk 0:02:49]}  cxd4 {[%clk 0:02:00]} 14. Nxd4 {[%clk 0:02:49]}  Bd7 {[%clk 0:02:00]} 15. Nxc6 {[%clk 0:02:45]}  Bxc6 {[%clk 0:02:01]} 16. Bxg7 {[%clk 0:02:45]}  Kxg7 {[%clk 0:02:01]} 17. Qd4+ {[%clk 0:02:45]}  Qf6 {[%clk 0:02:01]} 18. Rfd1 {[%clk 0:02:43]}  Qxd4 {[%clk 0:01:55]} 19. Rxd4 {[%clk 0:02:42]}  Re4 {[%clk 0:01:41]} 20. Rd2 {[%clk 0:02:42]}  a5 {[%clk 0:01:32]} 21. Bf3 {[%clk 0:02:33]}  Rb4 {[%clk 0:01:31]} 22. Bxd5 {[%clk 0:02:26]}  Rd8 {[%clk 0:01:28]} 23. Rcd1 {[%clk 0:02:26]}  a4 {[%clk 0:01:24]} 24. Bxc6 {[%clk 0:02:16]}  Rxd2 {[%clk 0:01:22]} 25. Rxd2 {[%clk 0:02:17]}  bxc6 {[%clk 0:01:19]} 26. Rd3 {[%clk 0:02:17]}  c5 {[%clk 0:01:12]} 27. g3 {[%clk 0:02:14]}  c4 {[%clk 0:01:04]} 28. bxc4 {[%clk 0:02:10]}  Rxc4 {[%clk 0:01:05]} 29. Rd4 {[%clk 0:02:07]}  Rxd4 {[%clk 0:00:51]} 30. exd4 {[%clk 0:02:07]}  Kf6 {[%clk 0:00:52]} 31. Kf1 {[%clk 0:02:07]}  Ke6 {[%clk 0:00:50]} 32. Ke2 {[%clk 0:02:07]}  Kd5 {[%clk 0:00:51]} 33. Kd3 {[%clk 0:02:07]}  a3 {[%clk 0:00:40]} 34. h4 {[%clk 0:02:05]}  h5 {[%clk 0:00:32]} 35. f3 {[%clk 0:02:03]}  f6 {[%clk 0:00:32]} 36. Kc3 {[%clk 0:02:01]}  g5 {[%clk 0:00:32]} 37. Kd3 {[%clk 0:01:59]}  Ke6 {[%clk 0:00:26]} 38. Kc4 {[%clk 0:01:56]}  f5 {[%clk 0:00:26]} 39. f4 {[%clk 0:01:56]} 1-0


[Site "https://www.chess.com"]

[Event "Titled Tuesday Blitz August 10 2021"]
[White "Bluebaum, Matthias"]
[Black "Yoo, Christopher Woojin"]
[WhiteFideId "24651516"]
[BlackFideId "30909694"]
[WhiteElo "2685"]
[BlackElo "2105"]
[Result "0-1"]
[Round "07"]
[TimeControl "180+1"]
[Date "2021.08.10"]
[WhiteClock "0:00:12"]
[BlackClock "0:00:09"]

1. d4 {[%clk 0:03:00]}  Nf6 {[%clk 0:02:56]} 2. c4 {[%clk 0:03:00]}  e6 {[%clk 0:02:56]} 3. Nc3 {[%clk 0:03:00]}  Bb4 {[%clk 0:02:55]} 4. e3 {[%clk 0:03:01]}  O-O {[%clk 0:02:54]} 5. Bd2 {[%clk 0:03:01]}  b6 {[%clk 0:02:51]} 6. Nf3 {[%clk 0:03:01]}  Bb7 {[%clk 0:02:51]} 7. Bd3 {[%clk 0:03:01]}  d5 {[%clk 0:02:51]} 8. cxd5 {[%clk 0:03:01]}  exd5 {[%clk 0:02:51]} 9. O-O {[%clk 0:03:02]}  Nbd7 {[%clk 0:02:48]} 10. Rc1 {[%clk 0:03:01]}  a6 {[%clk 0:02:42]} 11. Ne5 {[%clk 0:03:01]}  Bd6 {[%clk 0:02:41]} 12. f4 {[%clk 0:03:00]}  c5 {[%clk 0:02:40]} 13. Qf3 {[%clk 0:02:58]}  Re8 {[%clk 0:02:13]} 14. Be1 {[%clk 0:02:49]}  b5 {[%clk 0:01:57]} 15. Bh4 {[%clk 0:02:46]}  Be7 {[%clk 0:01:33]} 16. Qh3 {[%clk 0:02:33]}  Ne4 {[%clk 0:01:23]} 17. Bxe4 {[%clk 0:01:58]}  dxe4 {[%clk 0:01:21]} 18. Qxd7 {[%clk 0:01:38]}  Qxd7 {[%clk 0:01:12]} 19. Nxd7 {[%clk 0:01:39]}  Bxh4 {[%clk 0:01:03]} 20. Nxc5 {[%clk 0:01:39]}  Bc8 {[%clk 0:00:47]} 21. Nd5 {[%clk 0:01:11]}  Rb8 {[%clk 0:00:36]} 22. f5 {[%clk 0:01:07]}  Bg5 {[%clk 0:00:33]} 23. g3 {[%clk 0:00:51]}  Rd8 {[%clk 0:00:31]} 24. Nxe4 {[%clk 0:00:44]}  Bh6 {[%clk 0:00:27]} 25. g4 {[%clk 0:00:03]}  Bb7 {[%clk 0:00:16]} 26. Ne7+ {[%clk 0:00:02]}  Kf8 {[%clk 0:00:16]} 27. g5 {[%clk 0:00:03]}  Bxe4 {[%clk 0:00:11]} 28. gxh6 {[%clk 0:00:03]}  Kxe7 {[%clk 0:00:11]} 29. hxg7 {[%clk 0:00:04]}  Kf6 {[%clk 0:00:10]} 30. Rc7 {[%clk 0:00:04]}  Kxg7 {[%clk 0:00:07]} 31. f6+ {[%clk 0:00:04]}  Kg6 {[%clk 0:00:06]} 32. Re7 {[%clk 0:00:05]}  Bf5 {[%clk 0:00:06]} 33. e4 {[%clk 0:00:04]}  Be6 {[%clk 0:00:05]} 34. e5 {[%clk 0:00:04]}  Rxd4 {[%clk 0:00:05]} 35. Rf3 {[%clk 0:00:04]}  Rg4+ {[%clk 0:00:05]} 36. Kf2 {[%clk 0:00:04]}  Rc8 {[%clk 0:00:05]} 37. Ke3 {[%clk 0:00:05]}  Rc5 {[%clk 0:00:04]} 38. Re8 {[%clk 0:00:04]}  Rxe5+ {[%clk 0:00:04]} 39. Kf2 {[%clk 0:00:04]}  Rf5 {[%clk 0:00:03]} 40. Rxf5 {[%clk 0:00:04]}  Kxf5 {[%clk 0:00:04]} 41. Ra8 {[%clk 0:00:05]}  Ra4 {[%clk 0:00:03]} 42. a3 {[%clk 0:00:05]}  Kxf6 {[%clk 0:00:04]} 43. Ke3 {[%clk 0:00:05]}  b4 {[%clk 0:00:04]} 44. axb4 {[%clk 0:00:05]}  Rxb4 {[%clk 0:00:05]} 45. Rxa6 {[%clk 0:00:05]}  Rxb2 {[%clk 0:00:05]} 46. h4 {[%clk 0:00:06]}  Rb4 {[%clk 0:00:05]} 47. h5 {[%clk 0:00:06]}  Rh4 {[%clk 0:00:06]} 48. Ra5 {[%clk 0:00:06]}  Bf5 {[%clk 0:00:06]} 49. Ra6+ {[%clk 0:00:05]}  Kg5 {[%clk 0:00:06]} 50. h6 {[%clk 0:00:06]}  Rxh6 {[%clk 0:00:06]} 51. Ra7 {[%clk 0:00:07]}  Rf6 {[%clk 0:00:06]} 52. Kf2 {[%clk 0:00:08]}  h5 {[%clk 0:00:07]} 53. Kg3 {[%clk 0:00:09]}  h4+ {[%clk 0:00:07]} 54. Kh2 {[%clk 0:00:10]}  Bg4 {[%clk 0:00:08]} 55. Ra8 {[%clk 0:00:10]}  Rf2+ {[%clk 0:00:08]} 56. Kg1 {[%clk 0:00:11]}  Rf3 {[%clk 0:00:08]} 57. Rg8+ {[%clk 0:00:12]}  Kf4 {[%clk 0:00:08]} 58. Rb8 {[%clk 0:00:12]}  h3 {[%clk 0:00:09]} 59. Rb4+ {[%clk 0:00:13]}  Kg3 {[%clk 0:00:09]} 60. Rb2 {[%clk 0:00:13]}  h2+ {[%clk 0:00:07]} 61. Rxh2 {[%clk 0:00:10]}  Rf1+ {[%clk 0:00:08]} 62. Kxf1 {[%clk 0:00:10]}  Kxh2 {[%clk 0:00:08]} 63. Kf2 {[%clk 0:00:11]}  f5 {[%clk 0:00:09]} 64. Ke3 {[%clk 0:00:12]}  Kg3 {[%clk 0:00:09]} 0-1


[Site "https://www.chess.com"]

[Event "Titled Tuesday Blitz August 10 2021"]
[White "Grischuk, Alexander"]
[Black "Maghsoodloo, Parham"]
[WhiteFideId "4126025"]
[BlackFideId "12539929"]
[WhiteElo "2777"]
[BlackElo "2601"]
[Result "1-0"]
[Round "07"]
[TimeControl "180+1"]
[Date "2021.08.10"]
[WhiteClock "0:00:44"]
[BlackClock "0:00:01"]

1. e4 {[%clk 0:03:00]}  c5 {[%clk 0:02:58]} 2. Nc3 {[%clk 0:02:59]}  Nc6 {[%clk 0:02:53]} 3. Nf3 {[%clk 0:02:59]}  e5 {[%clk 0:02:45]} 4. Bc4 {[%clk 0:02:58]}  Be7 {[%clk 0:02:44]} 5. d3 {[%clk 0:02:59]}  d6 {[%clk 0:02:41]} 6. a3 {[%clk 0:02:59]}  Be6 {[%clk 0:02:40]} 7. Nd5 {[%clk 0:02:45]}  Nf6 {[%clk 0:02:37]} 8. O-O {[%clk 0:02:42]}  O-O {[%clk 0:02:36]} 9. c3 {[%clk 0:02:39]}  Rb8 {[%clk 0:02:17]} 10. b4 {[%clk 0:02:35]}  b5 {[%clk 0:02:16]} 11. Nxf6+ {[%clk 0:02:33]}  Bxf6 {[%clk 0:02:16]} 12. Bxe6 {[%clk 0:02:34]}  fxe6 {[%clk 0:02:16]} 13. Be3 {[%clk 0:02:34]}  Qe7 {[%clk 0:02:10]} 14. Nd2 {[%clk 0:02:13]}  Bg5 {[%clk 0:02:00]} 15. Qe2 {[%clk 0:02:12]}  Rfc8 {[%clk 0:01:31]} 16. bxc5 {[%clk 0:02:00]}  dxc5 {[%clk 0:01:30]} 17. Nb3 {[%clk 0:02:00]}  Bxe3 {[%clk 0:01:10]} 18. Qxe3 {[%clk 0:02:01]}  Nd8 {[%clk 0:01:11]} 19. a4 {[%clk 0:01:51]}  c4 {[%clk 0:00:44]} 20. Nd2 {[%clk 0:01:45]}  cxd3 {[%clk 0:00:18]} 21. Qxd3 {[%clk 0:01:27]}  b4 {[%clk 0:00:06]} 22. cxb4 {[%clk 0:01:26]}  Rxb4 {[%clk 0:00:07]} 23. Nf3 {[%clk 0:01:18]}  Nf7 {[%clk 0:00:06]} 24. Rfc1 {[%clk 0:01:13]}  Rd8 {[%clk 0:00:05]} 25. Qe3 {[%clk 0:01:08]}  h6 {[%clk 0:00:05]} 26. h3 {[%clk 0:01:06]}  Qb7 {[%clk 0:00:04]} 27. Re1 {[%clk 0:01:03]}  Rb3 {[%clk 0:00:03]} 28. Qe2 {[%clk 0:00:54]}  a5 {[%clk 0:00:03]} 29. Rac1 {[%clk 0:00:48]}  Rb4 {[%clk 0:00:03]} 30. Rc4 {[%clk 0:00:47]}  Qb6 {[%clk 0:00:02]} 31. Rec1 {[%clk 0:00:46]}  Rb2 {[%clk 0:00:01]} 32. R4c2 {[%clk 0:00:44]} 1-0


[Site "https://www.chess.com"]

[Event "Titled Tuesday Blitz August 10 2021"]
[White "Ivanisevic, Ivan"]
[Black "Adury, Anant"]
[WhiteFideId "912417"]
[BlackFideId "30964687"]
[WhiteElo "2499"]
[BlackElo "2340"]
[Result "1-0"]
[Round "07"]
[TimeControl "180+1"]
[Date "2021.08.10"]
[WhiteClock "0:00:15"]
[BlackClock "0:01:12"]

1. d4 {[%clk 0:02:44]}  Nf6 {[%clk 0:02:59]} 2. c4 {[%clk 0:02:43]}  e6 {[%clk 0:02:59]} 3. Nc3 {[%clk 0:02:42]}  d5 {[%clk 0:03:00]} 4. Bg5 {[%clk 0:02:40]}  Be7 {[%clk 0:02:59]} 5. e3 {[%clk 0:02:40]}  h6 {[%clk 0:02:58]} 6. Bf4 {[%clk 0:02:38]}  O-O {[%clk 0:02:57]} 7. Nf3 {[%clk 0:02:37]}  b6 {[%clk 0:02:56]} 8. g4 {[%clk 0:02:36]}  Bb7 {[%clk 0:02:48]} 9. g5 {[%clk 0:02:34]}  hxg5 {[%clk 0:02:47]} 10. Nxg5 {[%clk 0:02:34]}  Ne4 {[%clk 0:02:47]} 11. Ngxe4 {[%clk 0:02:24]}  dxe4 {[%clk 0:02:48]} 12. Rg1 {[%clk 0:02:24]}  g6 {[%clk 0:02:39]} 13. Qg4 {[%clk 0:02:00]}  Nd7 {[%clk 0:02:22]} 14. O-O-O {[%clk 0:01:59]}  Nf6 {[%clk 0:02:22]} 15. Qh3 {[%clk 0:01:57]}  Nh7 {[%clk 0:02:14]} 16. Be2 {[%clk 0:01:55]}  Bg5 {[%clk 0:02:14]} 17. Rxg5 {[%clk 0:01:28]}  Nxg5 {[%clk 0:02:15]} 18. Qh6 {[%clk 0:01:28]}  Nh7 {[%clk 0:01:47]} 19. Rg1 {[%clk 0:01:27]}  Kh8 {[%clk 0:01:46]} 20. Rg3 {[%clk 0:01:11]}  Rg8 {[%clk 0:01:36]} 21. Nb5 {[%clk 0:00:38]}  Rc8 {[%clk 0:01:33]} 22. Nxa7 {[%clk 0:00:37]}  Ra8 {[%clk 0:01:33]} 23. Nb5 {[%clk 0:00:38]}  Rxa2 {[%clk 0:01:30]} 24. Bxc7 {[%clk 0:00:36]}  Qf8 {[%clk 0:01:28]} 25. Qh4 {[%clk 0:00:32]}  f6 {[%clk 0:01:23]} 26. Bd6 {[%clk 0:00:28]}  Qg7 {[%clk 0:01:23]} 27. Kb1 {[%clk 0:00:27]}  Rga8 {[%clk 0:01:22]} 28. Rh3 {[%clk 0:00:26]}  g5 {[%clk 0:01:22]} 29. Qh5 {[%clk 0:00:26]}  Bc6 {[%clk 0:01:22]} 30. Nc7 {[%clk 0:00:26]}  R8a7 {[%clk 0:01:21]} 31. Nxe6 {[%clk 0:00:24]}  Qf7 {[%clk 0:01:21]} 32. Qg4 {[%clk 0:00:20]}  Ba4 {[%clk 0:01:16]} 33. Ba3 {[%clk 0:00:17]}  Rxa3 {[%clk 0:01:10]} 34. bxa3 {[%clk 0:00:18]}  Bd7 {[%clk 0:01:10]} 35. d5 {[%clk 0:00:17]}  Rxa3 {[%clk 0:01:08]} 36. Qxe4 {[%clk 0:00:17]}  Bxe6 {[%clk 0:01:08]} 37. dxe6 {[%clk 0:00:16]}  Qe7 {[%clk 0:01:08]} 38. c5 {[%clk 0:00:17]}  bxc5 {[%clk 0:01:06]} 39. Bd3 {[%clk 0:00:15]}  Ra7 {[%clk 0:01:04]} 40. Rxh7+ {[%clk 0:00:12]}  Qxh7 {[%clk 0:01:05]} 41. Qxh7+ {[%clk 0:00:12]}  Rxh7 {[%clk 0:01:06]} 42. Bxh7 {[%clk 0:00:12]}  Kxh7 {[%clk 0:01:04]} 43. e7 {[%clk 0:00:12]}  Kg7 {[%clk 0:01:05]} 44. e8=Q {[%clk 0:00:12]}  f5 {[%clk 0:01:05]} 45. Qc6 {[%clk 0:00:13]}  g4 {[%clk 0:01:05]} 46. Qxc5 {[%clk 0:00:13]}  g3 {[%clk 0:01:06]} 47. Qxf5 {[%clk 0:00:13]}  Kh6 {[%clk 0:01:07]} 48. Qh3+ {[%clk 0:00:13]}  Kg7 {[%clk 0:01:07]} 49. Qxg3+ {[%clk 0:00:14]}  Kh8 {[%clk 0:01:08]} 50. Kc2 {[%clk 0:00:13]}  Kh7 {[%clk 0:01:09]} 51. Kd3 {[%clk 0:00:14]}  Kh6 {[%clk 0:01:10]} 52. Ke4 {[%clk 0:00:14]}  Kh7 {[%clk 0:01:10]} 53. Kf5 {[%clk 0:00:15]}  Kh6 {[%clk 0:01:11]} 54. Kf6 {[%clk 0:00:15]}  Kh7 {[%clk 0:01:12]} 55. Qg7# {[%clk 0:00:15]} 1-0


[Site "https://www.chess.com"]

[Event "Titled Tuesday Blitz August 10 2021"]
[White "Khanin, Semen"]
[Black "Yakubboev, Nodirbek"]
[WhiteFideId "4111990"]
[BlackFideId "14203987"]
[WhiteElo "2521"]
[BlackElo "2519"]
[Result "1-0"]
[Round "07"]
[TimeControl "180+1"]
[Date "2021.08.10"]
[WhiteClock "0:00:02"]
[BlackClock "0:00:03"]

1. e4 {[%clk 0:03:00]}  e5 {[%clk 0:02:58]} 2. Nf3 {[%clk 0:03:01]}  Nc6 {[%clk 0:02:58]} 3. Bc4 {[%clk 0:03:00]}  Nf6 {[%clk 0:02:58]} 4. d3 {[%clk 0:03:00]}  Bc5 {[%clk 0:02:57]} 5. O-O {[%clk 0:02:59]}  d6 {[%clk 0:02:58]} 6. c3 {[%clk 0:02:59]}  a6 {[%clk 0:02:58]} 7. Nbd2 {[%clk 0:02:57]}  O-O {[%clk 0:02:55]} 8. h3 {[%clk 0:02:57]}  Ba7 {[%clk 0:02:52]} 9. Bb3 {[%clk 0:02:57]}  Ne7 {[%clk 0:02:44]} 10. Re1 {[%clk 0:02:52]}  Ng6 {[%clk 0:02:44]} 11. Nf1 {[%clk 0:02:53]}  Nh5 {[%clk 0:02:32]} 12. d4 {[%clk 0:02:48]}  Nhf4 {[%clk 0:02:14]} 13. Ng3 {[%clk 0:02:44]}  Qf6 {[%clk 0:02:11]} 14. Be3 {[%clk 0:02:26]}  Re8 {[%clk 0:02:00]} 15. Nh2 {[%clk 0:02:22]}  h6 {[%clk 0:01:18]} 16. Qd2 {[%clk 0:01:32]}  Nh4 {[%clk 0:01:01]} 17. Bxf4 {[%clk 0:01:31]}  exf4 {[%clk 0:01:01]} 18. Nh5 {[%clk 0:01:18]}  Qg5 {[%clk 0:01:00]} 19. Bxf7+ {[%clk 0:00:13]}  Kxf7 {[%clk 0:00:52]} 20. Qxf4+ {[%clk 0:00:13]}  Qxf4 {[%clk 0:00:38]} 21. Nxf4 {[%clk 0:00:13]}  g5 {[%clk 0:00:38]} 22. Nd5 {[%clk 0:00:13]}  Bb8 {[%clk 0:00:36]} 23. Re3 {[%clk 0:00:12]}  Be6 {[%clk 0:00:32]} 24. Rae1 {[%clk 0:00:12]}  c6 {[%clk 0:00:18]} 25. Nb6 {[%clk 0:00:12]}  Ra7 {[%clk 0:00:18]} 26. d5 {[%clk 0:00:12]}  Bc8 {[%clk 0:00:13]} 27. Nf3 {[%clk 0:00:08]}  Nxf3+ {[%clk 0:00:11]} 28. Rxf3+ {[%clk 0:00:08]}  Kg7 {[%clk 0:00:12]} 29. Nxc8 {[%clk 0:00:07]}  Rxc8 {[%clk 0:00:11]} 30. c4 {[%clk 0:00:05]}  b5 {[%clk 0:00:09]} 31. b3 {[%clk 0:00:04]}  cxd5 {[%clk 0:00:06]} 32. exd5 {[%clk 0:00:04]}  bxc4 {[%clk 0:00:07]} 33. bxc4 {[%clk 0:00:04]}  Rxc4 {[%clk 0:00:06]} 34. Re8 {[%clk 0:00:05]}  Rb7 {[%clk 0:00:06]} 35. Rff8 {[%clk 0:00:04]}  Ba7 {[%clk 0:00:06]} 36. Rg8+ {[%clk 0:00:04]}  Kh7 {[%clk 0:00:06]} 37. Rh8+ {[%clk 0:00:04]}  Kg6 {[%clk 0:00:07]} 38. Re6+ {[%clk 0:00:04]}  Kg7 {[%clk 0:00:07]} 39. Rhe8 {[%clk 0:00:03]}  Rc1+ {[%clk 0:00:04]} 40. Kh2 {[%clk 0:00:03]}  Bxf2 {[%clk 0:00:05]} 41. Rxd6 {[%clk 0:00:03]}  Rbb1 {[%clk 0:00:05]} 42. Rd7+ {[%clk 0:00:02]}  Kg6 {[%clk 0:00:04]} 43. Re6+ {[%clk 0:00:02]}  Kf5 {[%clk 0:00:03]} 44. Rf7# {[%clk 0:00:02]} 1-0


[Site "https://www.chess.com"]

[Event "Titled Tuesday Blitz August 10 2021"]
[White "Mikhailovsky, Vladimir"]
[Black "Makhnev, Denis"]
[WhiteFideId "34105414"]
[BlackFideId "13707647"]
[WhiteElo "2315"]
[BlackElo "2537"]
[Result "1-0"]
[Round "07"]
[TimeControl "180+1"]
[Date "2021.08.10"]
[WhiteClock "0:00:11"]
[BlackClock "0:00:03"]

1. Nf3 {[%clk 0:02:56]}  Nf6 {[%clk 0:02:59]} 2. c4 {[%clk 0:02:56]}  c5 {[%clk 0:02:58]} 3. Nc3 {[%clk 0:02:56]}  b6 {[%clk 0:02:58]} 4. g3 {[%clk 0:02:54]}  Bb7 {[%clk 0:02:58]} 5. Bg2 {[%clk 0:02:54]}  e6 {[%clk 0:02:59]} 6. O-O {[%clk 0:02:54]}  Be7 {[%clk 0:02:59]} 7. d4 {[%clk 0:02:54]}  cxd4 {[%clk 0:03:00]} 8. Qxd4 {[%clk 0:02:55]}  d6 {[%clk 0:03:01]} 9. Rd1 {[%clk 0:02:50]}  a6 {[%clk 0:02:59]} 10. Bg5 {[%clk 0:02:47]}  Nbd7 {[%clk 0:02:59]} 11. e4 {[%clk 0:02:25]}  Qc7 {[%clk 0:02:57]} 12. Na4 {[%clk 0:02:21]}  Bc6 {[%clk 0:02:53]} 13. Nc3 {[%clk 0:02:16]}  h6 {[%clk 0:02:49]} 14. Be3 {[%clk 0:02:13]}  O-O {[%clk 0:02:47]} 15. Rac1 {[%clk 0:02:13]}  Bb7 {[%clk 0:02:41]} 16. Ne1 {[%clk 0:01:51]}  Ng4 {[%clk 0:02:36]} 17. Bd2 {[%clk 0:01:44]}  Bf6 {[%clk 0:02:33]} 18. Qd3 {[%clk 0:01:43]}  Qc5 {[%clk 0:02:08]} 19. Qe2 {[%clk 0:01:36]}  Nge5 {[%clk 0:01:54]} 20. b3 {[%clk 0:01:21]}  Rfd8 {[%clk 0:01:42]} 21. Be3 {[%clk 0:01:21]}  Qc7 {[%clk 0:01:42]} 22. f4 {[%clk 0:01:15]}  Ng6 {[%clk 0:01:42]} 23. Nf3 {[%clk 0:01:13]}  Rac8 {[%clk 0:01:41]} 24. Nd4 {[%clk 0:01:10]}  Nc5 {[%clk 0:01:35]} 25. Bf2 {[%clk 0:00:58]}  Re8 {[%clk 0:01:29]} 26. Rd2 {[%clk 0:00:51]}  Kh8 {[%clk 0:00:58]} 27. Rcd1 {[%clk 0:00:42]}  Rcd8 {[%clk 0:00:57]} 28. Qh5 {[%clk 0:00:36]}  e5 {[%clk 0:00:51]} 29. fxe5 {[%clk 0:00:32]}  Rxe5 {[%clk 0:00:52]} 30. Nf5 {[%clk 0:00:31]}  Nxe4 {[%clk 0:00:50]} 31. Nxe4 {[%clk 0:00:29]}  Bxe4 {[%clk 0:00:50]} 32. Bxe4 {[%clk 0:00:27]}  Rxe4 {[%clk 0:00:51]} 33. Nxd6 {[%clk 0:00:19]}  Re5 {[%clk 0:00:44]} 34. Nxf7+ {[%clk 0:00:15]}  Qxf7 {[%clk 0:00:44]} 35. Rxd8+ {[%clk 0:00:15]}  Bxd8 {[%clk 0:00:44]} 36. Rxd8+ {[%clk 0:00:16]}  Kh7 {[%clk 0:00:45]} 37. Qd1 {[%clk 0:00:15]}  Rf5 {[%clk 0:00:36]} 38. Rd7 {[%clk 0:00:15]}  Qf8 {[%clk 0:00:36]} 39. Rd8 {[%clk 0:00:15]}  Qf6 {[%clk 0:00:31]} 40. Rd6 {[%clk 0:00:15]}  Qf7 {[%clk 0:00:19]} 41. Bxb6 {[%clk 0:00:14]}  Ne5 {[%clk 0:00:18]} 42. Kg2 {[%clk 0:00:13]}  Qb7+ {[%clk 0:00:18]} 43. Qd5 {[%clk 0:00:12]}  Qe7 {[%clk 0:00:16]} 44. Qe4 {[%clk 0:00:11]}  g6 {[%clk 0:00:16]} 45. Rd5 {[%clk 0:00:09]}  Qf6 {[%clk 0:00:16]} 46. Bd4 {[%clk 0:00:10]}  Qg5 {[%clk 0:00:05]} 47. Rxe5 {[%clk 0:00:10]}  Qd2+ {[%clk 0:00:04]} 48. Kh3 {[%clk 0:00:10]}  Rxe5 {[%clk 0:00:03]} 49. Qxe5 {[%clk 0:00:10]}  Qxh2+ {[%clk 0:00:02]} 50. Kxh2 {[%clk 0:00:10]}  Kg8 {[%clk 0:00:03]} 51. Qg7# {[%clk 0:00:11]} 1-0


[Site "https://www.chess.com"]